[Event "Khanty-Mansiysk FIDE GP (Women)"]
[Site "Khanty-Mansiysk"]
[Date "2014.04.20"]
[Round "10"]
[White "Ushenina, Anna"]
[Black "Dzagnidze, Nana"]
[Result "1/2-1/2"]
[ECO "E48"]
[WhiteElo "2501"]
[BlackElo "2550"]
[Annotator "ChessBase Website"]
[PlyCount "97"]
[EventDate "2014.04.09"]
[EventType "tourn"]
[EventRounds "11"]
[EventCountry "RUS"]
[EventCategory "10"]
[SourceTitle "CBM 160"]
[Source "ChessBase"]
[SourceDate "2014.05.15"]
[SourceVersion "1"]
[SourceVersionDate "2014.05.15"]
[SourceQuality "1"]
[TimeControl "40/5400+30:1800+30"]
[WhiteClock "1:30:00"]
[BlackClock "1:30:00"]

1. d4 {[%emt 0:00:00]} Nf6 {[%emt 0:00:00]} 2. c4 {[%emt 0:00:00]} e6 {[%emt 0:
00:00]} 3. Nc3 {[%emt 0:00:00]} Bb4 {[%emt 0:00:00]} 4. e3 {[%emt 0:00:00]} O-O
{[%emt 0:00:25]} 5. Bd3 {[%emt 0:00:11]} d5 {[%emt 0:00:10]} 6. a3 {[%emt 0:01:
24]} Bd6 {[%emt 0:07:04]} (6... Bxc3+ 7. bxc3 dxc4 8. Bxc4 c5 9. Nf3 Qc7 10.
Ba2 b6 11. O-O Bb7 12. Nd2 Nbd7 13. Bb2 Rad8 14. Re1 Ne4 15. Nxe4 Bxe4 16. c4
cxd4 17. exd4 Bg6 18. Qe2 Nf6 19. d5 exd5 20. Bxf6 gxf6 21. cxd5 Qd6 22. Bc4
Rc8 23. a4 Rc5 24. Rad1 Kg7 25. Rd4 Rfc8 26. Red1 Qe5 27. Qa2 Rd8 28. Bf1 Rd6
29. Qd2 h5 30. f4 Qe7 31. Qf2 Qd7 32. Bb5 Qc8 33. Bc6 Qf5 34. h3 Rc2 35. R1d2
Rc1+ 36. Rd1 {Tkachiev,V (2637)-Wojtaszek,R (2711) Warsaw 2013 0-1}) 7. Nf3 {
[%emt 0:02:29]} b6 {[%emt 0:03:58]} 8. e4 {[%emt 0:14:12]} dxe4 {[%emt 0:01:46]
} 9. Nxe4 {[%emt 0:02:25]} Nbd7 {[%emt 0:09:39]} 10. Nxd6 {[%emt 0:17:23]} cxd6
{[%emt 0:00:06]} 11. O-O {[%emt 0:00:08]} Bb7 {[%emt 0:18:41]} 12. Re1 $146 {
[%emt 0:01:21]} (12. Bf4 e5 13. dxe5 Bxf3 14. Qxf3 Nxe5 15. Qd1 Nxd3 16. Qxd3
d5 17. Rfd1 dxc4 18. Qxc4 Qc8 19. Rac1 Qxc4 20. Rxc4 Rfd8 21. Rxd8+ Rxd8 22. f3
Nd5 23. Bd2 f6 24. Kf2 Kf7 25. g4 Rd7 26. a4 g5 27. Ke2 h6 28. b4 Ne7 29. b5 f5
30. f4 fxg4 31. fxg5 h5 32. Rf4+ Kg7 33. Rf6 Ng6 34. a5 bxa5 35. Ra6 Ne5 36.
Bc3 Re7 37. Kf2 h4 38. Rh6 a4 39. Ra6 Kf7 40. Rxa4 Kg6 41. Bxe5 {1/2-1/2 (41)
Sokolov,I (2663)-Wang,H (2752) Wijk aan Zee 2013}) 12... Re8 {[%emt 0:04:26]}
13. Bg5 {[%emt 0:05:40]} Qc7 {[%emt 0:01:45]} 14. Rc1 {[%emt 0:02:15]} e5 {
[%emt 0:08:18]} 15. Bf5 {[%emt 0:12:25]} h6 {[%emt 0:16:52]} 16. Be3 {[%emt 0:
07:54]} Nf8 {[%emt 0:05:09]} 17. b4 {[%emt 0:10:05]} e4 {[%emt 0:03:15]} 18.
Nd2 {[%emt 0:00:36]} Bc8 {[%emt 0:00:08]} 19. Bxc8 {[%emt 0:01:46]} Raxc8 {
[%emt 0:02:06]} 20. d5 {[%emt 0:01:42]} N8d7 {[%emt 0:09:12]} 21. Bd4 {[%emt 0:
00:54]} Qb7 {[%emt 0:00:43]} 22. Qc2 {[%emt 0:07:30]} Nxd5 {[%emt 0:03:04]} 23.
Nxe4 {[%emt 0:00:51]} Nf4 {[%emt 0:00:12]} 24. f3 {[%emt 0:00:15]} Re6 {
[%emt 0:00:06]} 25. Qd2 {[%emt 0:00:59]} Ng6 {[%emt 0:00:20]} 26. Bb2 {[%emt 0:
02:24]} Qc6 {[%emt 0:00:33]} 27. Qd4 {[%emt 0:05:34]} Nde5 {[%emt 0:00:15]} 28.
c5 {[%emt 0:00:07]} bxc5 {[%emt 0:01:37]} 29. bxc5 {[%emt 0:00:02]} dxc5 {
[%emt 0:01:29]} 30. Rxc5 {[%emt 0:00:38] Another typical game for the
tournament: Ushenina obtained an opening advantage, missed a clear opportunity
to press forward and the game ended in a draw and a spoilt opportunity. Had
Ushenina converted every clear advantage she had this tournament the standings
would be entirely different.} Qa8 {[%emt 0:00:52]} 31. Kh1 {[%emt 0:00:36]} Rd8
{[%emt 0:01:57]} 32. Qc3 {[%emt 0:00:02]} Kh7 {[%emt 0:01:18]} 33. Rc7 {
[%emt 0:01:13]} Rc6 {[%emt 0:00:16]} 34. Rxc6 {[%emt 0:01:37]} Qxc6 {[%emt 0:
00:02]} 35. Qxc6 {[%emt 0:00:59]} Nxc6 {[%emt 0:00:02]} 36. Rc1 {[%emt 0:00:12]
} Nge7 {[%emt 0:01:06]} 37. Kg1 {[%emt 0:00:06]} Rd5 {[%emt 0:00:56]} 38. Bc3 {
[%emt 0:00:36]} f5 {[%emt 0:00:33]} 39. Nd2 {[%emt 0:00:08]} Rd3 {[%emt 0:00:
22]} 40. Nc4 {[%emt 0:00:00]} Nd5 {[%emt 0:00:00]} 41. Bb2 {[%emt 0:05:10]} Nf4
{[%emt 0:06:44]} 42. Kf1 {[%emt 0:07:20]} Rb3 {[%emt 0:03:20]} 43. Rc3 {
[%emt 0:01:34]} Rb8 {[%emt 0:04:11]} 44. g3 {[%emt 0:01:45]} Ne6 {[%emt 0:01:
35]} 45. Kf2 {[%emt 0:05:09]} Na5 {[%emt 0:04:51]} 46. Ba1 {[%emt 0:02:38]} Nb3
{[%emt 0:00:37]} 47. Bb2 {[%emt 0:00:09]} Na5 {[%emt 0:00:18]} 48. Ba1 {
[%emt 0:00:35]} Nb3 {[%emt 0:00:09]} 49. Bb2 {[%emt 0:00:42]} 1/2-1/2